bitfinex-derivatives/quotes_ETHF0:USTF0_20250331
["timestamp","ask_amount","ask_price","bid_price","bid_amount"]
[1743418157878,1.10625,1808.1,1807.9,3.21610242]
[1743418158079,1.10628,1808.0,1807.9,3.21610242]
[1743418158379,6.128,1808.4,1807.9,3.21610242]
[1743418158577,8.89309,1808.4,1808.1,3.2078]
[1743418158777,6.128,1808.4,1808.1,3.2078]
[1743418158980,1.10616,1808.2,1808.1,3.2078]
[1743418159686,1.10628,1808.0,1807.9,3.21610242]
[1743418160077,1.10628,1808.0,1807.9,0.00830242]
[1743418160278,5.70328,1808.0,1807.9,0.00830242]
[1743418160881,7.10968,1808.0,1807.9,0.00830242]
[1743418161378,3.71060472,1808.9,1807.9,8.48188242]
[1743418161580,0.7075,1808.7,1808.2,3.2078]
[1743418161783,3.47214,1808.7,1808.2,3.2078]
[1743418162089,4.27079,1808.6,1808.2,3.2078]
[1743418162280,1.10608,1808.4,1808.2,3.2078]
[1743418162479,1.506,1808.3,1808.2,4.31396]
[1743418163382,1.10626,1808.1,1808.0,3.2078]
[1743418164874,2.61222,1808.1,1808.0,3.2078]
[1743418165081,55.782,1809.4,1808.3,1.10609]
[1743418165286,4.13893,1808.9,1808.3,7.9158]
[1743418165587,1.10591,1808.6,1808.5,3.2078]
[1743418165781,1.1059,1808.7,1808.5,3.2078]
[1743418165986,1.10604,1808.4,1808.3,30.8078]
[1743418166182,1.10619,1808.2,1808.1,3.2078]
[1743418166381,2.48073,1808.3,1808.1,1.4263]
[1743418166681,4.712,1808.8,1808.2,1.4263]
[1743418166682,1.10596,1808.6,1808.2,1.4263]
[1743418166888,1.3746,1808.5,1808.3,3.2078]
[1743418167083,2.48057,1808.5,1808.4,1.4263]
[1743418168279,2.76433,1808.9,1808.4,4.6341]
[1743418168484,1.442,1808.6,1808.5,1.10597]
[1743418168690,2.76437,1808.9,1808.5,1.4974]
[1743418168877,1.10591,1808.6,1808.5,1.4974]
[1743418169876,1.10597,1808.5,1808.4,3.2078]
[1743418170080,2.54797,1808.5,1808.4,3.2078]
[1743418170782,2.54797,1808.5,1808.2,1.4974]
[1743418170783,6.13,1808.5,1808.2,4.7052]
[1743418171086,1.10628,1808.0,1807.9,0.00830242]
[1743418171588,4.696,1808.2,1808.0,1.10628]
[1743418171791,5.80217,1808.2,1808.1,1.4255]
[1743418171983,4.696,1808.2,1808.1,1.4255]
[1743418172182,0.7278,1808.4,1808.1,1.4255]
[1743418172377,1.10616,1808.2,1808.1,1.4255]
[1743418173280,1.3691,1808.3,1808.0,3.2078]
[1743418173281,1.10622,1808.1,1808.0,3.2078]
[1743418173584,1.10628,1808.0,1807.9,3.21610242]
[1743418173791,1.10628,1808.0,1807.9,0.00830242]
[1743418175189,5.04348,1808.0,1807.9,0.00830242]
[1743418175488,1.10652,1807.6,1807.5,4.6126]
[1743418175787,4.739,1807.7,1807.5,4.6126]
[1743418176085,2.76419,1809.0,1807.7,2.76607]
[1743418176285,2.61699,1808.7,1808.6,3.2078]
[1743418177093,3.2078,1809.2,1808.6,3.2078]
[1743418177094,3.2078,1809.5,1808.7,1.10585]
[1743418177388,1.10561,1809.1,1809.0,3.2078]
[1743418177787,1.10561,1809.1,1808.8,2.1741]
[1743418177788,1.10573,1808.9,1808.8,4.6253]
[1743418179287,1.10573,1808.9,1808.8,1.4175]
[1743418179487,1.10585,1808.7,1808.6,30.8078]
[1743418179793,1.10581,1808.8,1808.6,4.3137]
[1743418180092,4.18783,1809.1,1808.6,3.2078]
[1743418180093,2.76417,1809.0,1808.6,3.2078]
[1743418180686,1.10579,1808.8,1808.7,1.3923]
[1743418180888,0.01966,1809.4,1808.7,4.15682]
[1743418181083,1.5097,1809.3,1809.2,1.10554]
[1743418181389,1.5097,1809.3,1809.2,2.49784]
[1743418181786,2.61518,1809.3,1809.2,1.3923]
[1743418182988,1.5097,1809.3,1809.2,1.3923]
[1743418183486,2.61518,1809.3,1809.2,1.3923]
[1743418184084,1.10554,1809.2,1809.1,0.00830242]
[1743418184287,2.50764,1809.2,1809.1,0.00830242]
[1743418184887,5.71544,1809.2,1809.1,0.00830242]
[1743418185781,3.2078,1809.2,1809.1,0.00830242]
[1743418185987,0.01966,1809.4,1809.1,5.71610242]
[1743418186188,0.01966,1809.4,1809.3,3.2078]
[1743418186386,1.12508,1809.4,1809.3,3.2078]
[1743418187186,0.01966,1809.4,1809.3,3.2078]
[1743418187493,1.5022,1809.8,1809.4,2.76356]
[1743418187690,1.10495,1810.2,1809.7,4.31304]
[1743418187996,1.4526,1810.3,1809.3,37.90714]
[1743418187997,0.7347,1810.3,1809.9,3.2078]
[1743418188186,1.10496,1810.2,1810.0,1.4332]
[1743418188493,3.3418,1810.3,1810.1,3.2078]
[1743418188693,3.2078,1810.7,1810.2,1.4332]
[1743418188895,1.10478,1810.5,1810.2,1.4332]
[1743418189090,1.10478,1810.5,1810.3,3.2078]
[1743418189290,7.53443,1810.8,1810.3,3.2078]
[1743418189600,4.27209,1810.7,1810.1,3.2078]
[1743418189798,1.10493,1810.2,1810.1,4.6519]
[1743418189991,2.76188,1810.5,1810.1,4.6519]
[1743418190186,3.2078,1810.9,1810.2,3.2078]
[1743418190395,1.10487,1810.3,1810.2,1.4441]
[1743418190592,1.10498,1810.2,1810.0,3.21610242]
[1743418190897,2.61549,1810.1,1810.0,3.21610242]
[1743418191196,1.10537,1809.5,1809.2,5.03692]
[1743418191499,1.10548,1809.3,1809.2,3.2078]
[1743418192095,1.10561,1809.1,1809.0,3.2078]
[1743418192397,2.46644,1809.2,1809.1,0.00830242]
[1743418192701,2.46644,1809.2,1809.1,3.21610242]
[1743418193302,2.46644,1809.2,1809.1,0.00830242]
[1743418194302,2.0569,1809.2,1809.1,0.00830242]
[1743418194504,3.16244,1809.2,1809.1,1.50590242]
[1743418195001,3.16244,1809.2,1809.1,0.00830242]
[1743418195500,1.10579,1808.8,1808.7,1.442]
[1743418196297,1.409,1808.8,1808.7,1.442]
[1743418196502,2.51479,1808.8,1808.7,1.442]
[1743418198198,1.10579,1808.8,1808.7,1.442]
[1743418198605,2.61679,1808.8,1808.7,1.442]
[1743418200397,1.10585,1808.7,1808.6,0.00830242]
[1743418200603,3.34685,1808.7,1808.6,0.00830242]
[1743418201604,1.10585,1808.7,1808.6,0.00830242]
[1743418201808,1.10585,1808.7,1808.6,2.59719242]
[1743418202104,2.76424,1809.0,1808.6,1.49130242]
[1743418202293,1.10567,1809.0,1808.9,3.2078]
[1743418202497,1.10579,1808.8,1808.7,1.483]
[1743418202699,4.13358,1809.0,1808.7,1.10583]
[1743418202903,1.3694,1808.9,1808.7,3.2078]
[1743418203204,1.10579,1808.8,1808.7,3.2078]
[1743418203407,2.76395,1809.2,1808.7,3.2078]
[1743418203606,1.10568,1809.0,1808.9,3.2078]
[1743418203794,1.10564,1809.1,1809.0,1.10561]
[1743418204196,1.10567,1809.0,1808.9,3.2078]
[1743418205309,4.72,1809.2,1808.9,5.97205]
[1743418205500,0.7008,1809.3,1809.2,1.10554]
[1743418205802,0.7008,1809.3,1809.2,1.10552]
[1743418205803,1.10554,1809.3,1809.2,1.10552]
[1743418206506,0.00830242,1809.4,1809.3,1.10548]
[1743418206810,1.10522,1809.8,1809.7,1.10522]
[1743418207008,1.10522,1809.8,1809.4,2.76353]
[1743418207009,1.10514,1809.9,1809.8,1.10513]
[1743418207203,1.1051,1810.0,1809.9,1.1051]
[1743418207402,1.10502,1810.1,1810.0,1.105]
[1743418207602,1.10499,1810.1,1810.0,4.31281]
[1743418207801,1.10511,1810.0,1809.8,3.2078]
[1743418207997,3.46316,1810.2,1809.8,3.2078]
[1743418207998,1.81407242,1810.2,1809.9,0.00830242]
[1743418208203,0.00830242,1810.2,1810.1,1.10499]
[1743418209417,5.81673,1810.6,1810.5,1.10475]
[1743418209603,4.712,1810.6,1810.5,1.10475]
[1743418209799,1.3688,1810.7,1810.5,1.10475]
[1743418210105,1.10463,1810.7,1810.6,3.2078]
[1743418210305,1.10466,1810.7,1810.5,1.10473]
[1743418211004,1.3688,1810.8,1810.4,4.3126]
[1743418211202,0.6891,1810.9,1810.4,3.2078]
[1743418211406,1.1046,1810.8,1810.6,1.10467]
[1743418211613,1.1046,1810.8,1810.5,1.10471]
[1743418211806,1.1046,1810.8,1810.6,1.10468]
[1743418212108,1.4135,1810.8,1810.6,1.10468]
[1743418212308,3.2078,1811.4,1810.6,3.2078]
[1743418212616,1.10493,1810.2,1809.4,1.10539]
[1743418212906,3.2078,1810.0,1809.9,1.10512]
[1743418213296,3.2078,1810.0,1809.9,3.60512]
[1743418213507,3.2078,1810.3,1810.2,1.10493]
[1743418213708,1.10494,1810.2,1809.8,9.736]
[1743418213916,1.10494,1810.2,1810.1,0.00830242]
[1743418214210,1.10493,1810.2,1810.1,0.00830242]
[1743418214411,7.45663,1810.2,1810.1,0.00830242]
[1743418215411,7.45663,1810.2,1810.1,2.42e-06]
[1743418215609,9.95663,1810.2,1810.1,2.42e-06]
[1743418215804,3.20779758,1810.1,1809.0,0.7306]
[1743418216007,4.31344,1809.1,1808.8,9.736]
[1743418216210,4.31343,1809.1,1808.7,0.7389]
[1743418216411,1.10568,1809.0,1808.8,1.4399]
[1743418216615,3.2078,1809.1,1808.8,1.4399]
[1743418216808,3.2078,1809.1,1808.8,2.54567]
[1743418217004,0.00830242,1809.1,1808.9,1.10571]
[1743418217203,4.32173242,1809.1,1808.9,1.4634]
[1743418217407,3.21610242,1809.1,1808.9,2.5691]
[1743418217705,1.10567,1809.0,1808.9,1.4634]
[1743418217901,3.21610242,1809.1,1808.9,1.4634]
[1743418218321,3.21610242,1809.1,1809.0,1.10567]
[1743418218507,3.21610242,1809.1,1808.9,1.4634]
[1743418218815,0.00830242,1809.1,1809.0,1.10567]
[1743418219021,0.00830242,1809.1,1809.0,2.56907]
[1743418219513,3.2078,1809.3,1809.2,1.10554]
[1743418219714,1.10544,1809.4,1809.3,1.10548]
[1743418219915,1.1054,1809.5,1809.1,10.4275]
[1743418220103,3.2078,1809.6,1809.1,10.4275]
[1743418220104,1.10542,1809.4,1809.3,1.10545]
[1743418220510,1.10542,1809.5,1809.3,1.10545]
[1743418220706,1.11372242,1809.5,1809.4,2.54462]
[1743418221110,1.11372242,1809.5,1809.4,1.4392]
[1743418221508,1.11372242,1809.5,1809.4,2.54462]
[1743418221712,1.11372242,1809.5,1809.4,1.4392]
[1743418222115,1.11372242,1809.5,1809.4,2.54462]
[1743418222315,1.11372242,1809.5,1809.4,1.4392]
[1743418223017,1.10554,1809.2,1809.1,9.736]
[1743418223216,4.31333,1809.3,1809.2,1.10554]
[1743418223412,4.31333,1809.3,1809.2,1.5089]
[1743418223715,1.10573,1808.9,1808.8,27.60830242]
[1743418223913,1.10573,1808.9,1808.8,0.00830242]
[1743418225116,2.49933,1808.9,1808.8,0.00830242]
[1743418226412,1.3936,1808.9,1808.8,0.00830242]
[1743418226823,1.3936,1808.9,1808.8,1.11409242]
[1743418227522,4.3135,1809.0,1808.8,1.11409242]
[1743418227523,3.2078,1809.0,1808.8,0.00830242]
[1743418227722,3.2078,1809.0,1808.9,1.10573]
[1743418228321,4.6078,1809.0,1808.8,0.00830242]
[1743418228616,1.10573,1808.9,1808.8,1.11408242]
[1743418228822,2.55893,1808.9,1808.8,0.00830242]
[1743418229120,1.4532,1808.9,1808.8,0.00830242]
[1743418229517,4.31351,1809.0,1808.8,1.11408242]
[1743418229722,3.2078,1809.0,1808.9,1.10573]
[1743418230115,3.2078,1809.0,1808.9,2.53803]
[1743418230313,5.5507,1809.3,1809.0,2.76408]
[1743418230314,3.8975,1809.3,1809.0,2.76408]
[1743418230514,3.2078,1809.3,1809.2,1.10554]
[1743418231114,3.26707,1809.4,1809.3,1.10548]
[1743418231315,5.3694,1809.4,1809.3,1.10548]
[1743418231717,2.1616,1809.4,1809.1,1.4323]
[1743418231921,2.1616,1809.4,1809.3,1.10548]
[1743418232124,1.11370242,1809.5,1809.3,1.10548]
[1743418232320,0.00830242,1809.5,1809.4,2.59312]
[1743418232515,1.11366242,1809.5,1809.4,2.59312]
[1743418232716,0.00830242,1809.5,1809.4,2.59312]
[1743418233221,1.11366242,1809.5,1809.4,2.59312]
[1743418233421,1.11366242,1809.5,1809.4,1.4877]
[1743418233822,1.11366242,1809.5,1809.4,2.59312]
[1743418234024,1.11366242,1809.5,1809.1,2.76401]
[1743418234025,1.10542,1809.4,1809.3,1.10544]
[1743418234226,1.11368242,1809.5,1809.4,1.10542]
[1743418234425,2.61728242,1809.5,1809.1,4.25159]
[1743418234724,2.61728242,1809.5,1809.4,1.10542]
[1743418235317,2.61730242,1809.5,1809.4,1.10542]
[1743418235512,2.61731242,1809.5,1809.2,1.4877]
[1743418235716,1.10548,1809.3,1809.2,1.4877]
[1743418236221,1.5025,1809.3,1808.8,11.52875242]
[1743418236425,1.10557,1809.2,1808.9,1.4123]
[1743418236728,1.5025,1809.3,1809.2,1.10554]
[1743418236929,2.60798,1809.3,1809.2,1.10554]
[1743418237433,1.5025,1809.3,1809.2,1.10554]
[1743418237824,4.31324,1809.4,1809.3,1.10548]
[1743418238024,1.10549,1809.3,1809.2,1.1055]
[1743418238231,1.10549,1809.3,1809.2,1.3743]
[1743418238430,2.52869,1809.3,1809.2,1.3743]
[1743418239028,1.10571,1809.0,1808.9,1.10573]
[1743418239330,1.10573,1808.9,1808.8,0.00830242]
[1743418239525,2.52893,1808.9,1808.8,1.38260242]
[1743418239930,2.52893,1808.9,1808.8,0.00830242]
[1743418240732,2.52893,1808.9,1808.4,1.85857]
[1743418240733,1.10601,1808.5,1808.4,1.10603]
[1743418240928,1.10603,1808.4,1808.3,27.6]
[1743418241229,1.10603,1808.4,1807.4,5.53318]
[1743418241230,4.837,1808.4,1807.0,9.736]
[1743418241428,4.837,1808.4,1807.5,1.10654]
[1743418241429,3.2078,1807.8,1807.5,1.10654]
[1743418241628,3.2078,1807.8,1807.7,1.10646]
[1743418241930,0.00830242,1807.8,1807.7,1.10646]
[1743418242123,0.00830242,1807.8,1807.6,1.3876]
[1743418242323,1.11472242,1807.8,1807.5,1.11485242]
[1743418242524,1.4397,1807.7,1807.5,1.11485242]
[1743418242723,1.4397,1807.7,1807.6,1.3876]
[1743418243026,2.54616,1807.7,1807.5,0.00830242]
[1743418243225,3.2078,1807.6,1807.5,1.39590242]
[1743418243422,3.2078,1807.6,1807.5,2.50248242]
[1743418243826,0.00830242,1807.8,1807.5,2.50248242]
[1743418243827,4.32251242,1807.8,1807.6,1.1065]
[1743418244026,4.32251242,1807.8,1807.7,1.4231]
[1743418245035,1.10648,1807.7,1807.5,0.00830242]
[1743418245235,2.48958,1807.7,1807.5,1.43140242]
[1743418245627,1.3831,1807.7,1807.5,2.53798242]
[1743418245826,1.10646,1807.7,1807.5,2.53797242]
[1743418246229,1.10646,1807.7,1807.5,1.43140242]
[1743418246430,1.10647,1807.7,1807.5,2.53797242]
[1743418246735,4.32252242,1807.8,1807.6,1.10649]
[1743418246934,3.21610242,1807.8,1807.7,1.4231]
[1743418247130,3.21610242,1807.8,1807.5,0.00830242]
[1743418247335,1.3967,1807.7,1807.5,0.00830242]
[1743418247534,4.31432,1807.6,1807.5,0.00830242]
[1743418248334,5.71102,1807.6,1807.5,0.00830242]
[1743418248934,1.10673,1807.3,1807.1,1.4368]
[1743418249131,4.31453,1807.3,1807.1,1.4368]
[1743418249336,1.3967,1807.6,1807.2,4.31457]
[1743418249642,5.97276,1808.5,1807.8,2.76601]
[1743418249938,2.7649,1808.6,1807.7,1.10646]
[1743418249939,2.7654,1808.2,1807.7,4.828]
[1743418250135,2.7654,1808.2,1807.6,12.9438]
[1743418250136,4.6841,1808.1,1807.6,12.26749]
[1743418250352,8.14373,1808.1,1807.7,1.10645]
[1743418250642,1.1064,1807.8,1807.7,1.425]
[1743418250844,8.15203242,1808.1,1807.7,1.43330242]
[1743418251140,1.1064,1807.8,1807.7,0.00830242]
[1743418251736,2.5827,1807.8,1807.7,0.00830242]
[1743418251938,1.4763,1807.8,1807.2,3.2078]
[1743418252139,1.10666,1807.4,1807.1,1.425]
[1743418252443,5.79053,1807.8,1807.6,1.10648]
[1743418252642,1.10648,1807.7,1807.5,1.10654]
[1743418252842,1.10652,1807.6,1807.5,1.10654]
[1743418253141,1.10654,1807.6,1807.4,1.43330242]
[1743418253331,1.10654,1807.6,1807.5,1.10658]
[1743418253536,4.6841,1807.8,1807.4,1.43330242]
[1743418253741,1.10649,1807.7,1807.5,1.10654]
[1743418253942,1.4244,1807.7,1807.6,2.52402]
[1743418256047,2.53086,1807.7,1807.6,1.4175]
[1743418256247,1.4244,1807.7,1807.6,2.52402]
[1743418256942,2.53086,1807.7,1807.5,1.10654]
[1743418257248,2.5309,1807.7,1807.6,1.10652]
[1743418257742,2.5309,1807.7,1807.5,2.53124]
[1743418257945,2.53086,1807.7,1807.6,1.10652]
[1743418258942,2.53086,1807.7,1807.5,1.4247]
[1743418259148,2.53086,1807.7,1807.6,1.10652]
[1743418259340,1.10652,1807.6,1807.5,2.53124]
[1743418259540,2.56442,1807.6,1807.5,2.53124]
[1743418259743,2.56442,1807.6,1807.4,0.00830242]
[1743418259744,1.10658,1807.5,1807.4,0.00830242]
[1743418260041,2.56448,1807.5,1807.4,0.00830242]
[1743418260236,5.53325,1807.4,1806.7,3.2078]
[1743418260444,1.10699,1806.9,1806.7,1.10704]
[1743418260737,0.6866,1807.4,1806.7,3.2078]
[1743418260943,2.56467,1807.2,1807.0,1.10689]
[1743418261138,7.43268,1807.2,1806.7,3.2078]
[1743418261438,1.10685,1807.1,1806.9,1.11525242]
[1743418261646,1.4579,1807.1,1806.9,1.11520242]
[1743418261939,1.4579,1807.1,1807.0,2.51309]
[1743418262139,1.4579,1807.1,1807.0,1.4062]
[1743418262340,1.4579,1807.1,1807.0,1.10689]
[1743418262648,2.56473,1807.1,1806.9,1.11521242]
[1743418262848,1.10689,1807.0,1806.9,0.00830242]
[1743418263050,2.54369,1807.0,1806.9,0.00830242]
[1743418263354,1.4368,1807.0,1806.9,1.11525242]
[1743418263644,2.54369,1807.0,1806.9,1.11525242]
[1743418263848,1.4368,1807.0,1806.9,1.11525242]
[1743418264637,2.54369,1807.0,1806.9,0.00830242]
[1743418265038,7.9148,1807.2,1806.9,0.00830242]
[1743418265243,1.11502242,1807.3,1806.9,5.98343242]
[1743418265439,0.00830242,1807.3,1807.2,4.31457]
[1743418267947,0.00830242,1807.3,1807.2,5.74617]
[1743418269452,0.00830242,1807.3,1807.2,1.10677]
[1743418269658,1.11501242,1807.3,1807.2,1.10677]
[1743418270338,0.00830242,1807.3,1807.2,1.10677]
[1743418270541,1.11501242,1807.3,1807.2,1.10677]
[1743418271346,0.00830242,1807.3,1807.2,1.10677]
[1743418272162,2.56811242,1807.3,1807.2,1.10677]
[1743418272947,1.46140242,1807.3,1807.1,1.4136]
[1743418273255,1.46140242,1807.3,1807.2,1.10677]
[1743418274554,0.00830242,1807.3,1807.2,1.10677]
[1743418275157,0.00830242,1807.3,1807.2,4.31457]
[1743418275557,1.491,1807.6,1807.5,1.10658]
[1743418275757,0.6984,1807.7,1807.6,1.10652]
[1743418275954,3.2078,1807.9,1807.8,1.1064]
[1743418276159,0.6905,1808.1,1807.9,1.10634]
[1743418276160,1.491,1808.0,1807.9,1.10634]
[1743418276357,2.48545,1808.1,1808.0,1.10628]
[1743418276554,2.8702,1808.1,1808.0,1.10628]
[1743418277659,1.10628,1808.0,1807.9,1.51980242]
[1743418277860,2.54538,1808.0,1807.9,0.00830242]
[1743418278057,1.10644,1807.8,1807.6,4.6351]
[1743418278253,1.4391,1807.7,1807.6,1.10648]
[1743418278655,2.54556,1807.7,1807.6,1.10648]
[1743418278961,1.4391,1807.7,1807.6,1.10648]
[1743418279261,1.4391,1807.7,1807.5,1.43560242]
[1743418279461,4.31432,1807.6,1807.5,0.00830242]
[1743418279672,5.81132,1807.6,1807.5,0.00830242]
[1743418280162,7.25042,1807.6,1807.5,0.00830242]
[1743418281057,3.2078,1808.0,1807.5,0.00830242]
[1743418281260,1.4972,1808.0,1807.9,1.10634]
[1743418281460,1.50550242,1808.2,1808.1,1.10622]
[1743418281655,1.50550242,1808.2,1807.9,2.76574]
[1743418281656,2.61166242,1808.2,1807.9,1.3845]
[1743418281852,2.61166242,1808.2,1808.1,1.10622]
[1743418282055,1.50550242,1808.2,1808.1,1.10622]
[1743418282261,1.50550242,1808.2,1807.9,4.15035]
[1743418282458,2.61169242,1808.2,1808.0,1.10625]
[1743418282659,1.10622,1808.1,1808.0,1.3845]
[1743418282854,1.10622,1808.1,1807.8,3.2078]
[1743418282855,2.60342,1808.1,1807.8,4.31415]
[1743418283066,1.1063,1808.0,1807.8,4.31415]
[1743418283268,1.10628,1808.0,1807.9,1.10628]
[1743418283466,2.60348,1808.0,1807.9,1.3845]
[1743418283667,1.4972,1808.0,1807.8,3.2078]
[1743418283867,69.26452,1807.9,1806.8,3.2078]
[1743418284064,3.2078,1807.1,1806.8,4.6101]
[1743418284360,3.2078,1807.1,1806.9,1.10695]
[1743418284361,1.4589,1807.0,1806.9,1.10695]
[1743418284565,3.2078,1807.4,1806.9,1.10691]
[1743418284754,1.10683,1807.1,1807.0,1.4023]
[1743418285360,2.56573,1807.1,1807.0,1.4023]
[1743418286061,1.10689,1807.0,1806.9,0.00830242]
[1743418286260,5.77359,1807.0,1806.9,0.00830242]
[1743418286571,10.50259,1807.0,1806.9,0.00830242]
[1743418287059,5.77359,1807.0,1806.9,0.00830242]
[1743418287267,2.77524242,1807.2,1807.1,1.10683]
[1743418287268,0.00830242,1807.2,1807.1,1.10683]
[1743418287458,1.11509242,1807.2,1807.0,1.3785]
[1743418287657,1.11510242,1807.2,1807.0,1.3785]
[1743418287865,1.40800242,1807.2,1807.0,2.48539]
[1743418288271,2.51479242,1807.2,1807.0,2.48539]
[1743418288467,1.40800242,1807.2,1807.1,1.10683]
[1743418288766,2.51477242,1807.2,1807.0,2.48534]
[1743418288968,1.10683,1807.1,1807.0,1.3785]
[1743418289168,2.50653,1807.1,1807.0,1.3785]
[1743418289668,1.3997,1807.1,1807.0,1.3785]
[1743418289961,1.3997,1807.1,1807.0,2.48539]
[1743418290164,2.50653,1807.1,1807.0,1.3785]
[1743418290368,1.3997,1807.1,1807.0,2.48539]
[1743418290671,2.50653,1807.1,1807.0,1.3785]
[1743418290870,1.3997,1807.1,1807.0,2.48539]
[1743418291368,2.50653,1807.1,1807.0,1.3785]
[1743418291773,1.10689,1807.0,1806.9,0.00830242]
[1743418291965,3.22619,1807.0,1806.9,0.00830242]
[1743418292167,7.92519,1807.0,1806.9,0.00830242]
[1743418292566,6.8183,1807.0,1806.9,0.00830242]
[1743418292766,6.8183,1807.0,1806.9,1.11525242]
[1743418292971,7.92519,1807.0,1806.9,0.00830242]
[1743418293276,7.92519,1807.0,1806.9,1.41060242]
[1743418294682,7.92519,1807.0,1806.9,0.00830242]
[1743418296168,10.42519,1807.0,1806.9,0.00830242]
[1743418296368,7.92519,1807.0,1806.9,0.00830242]
[1743418298465,3.22619,1807.0,1806.9,0.00830242]
[1743418298667,7.90719,1807.0,1806.9,0.00830242]
[1743418300272,0.00830242,1807.2,1806.9,0.00830242]
[1743418300466,0.00830242,1807.2,1807.1,1.10683]
[1743418300871,0.00830242,1807.2,1807.1,2.50353]
[1743418301265,1.11507242,1807.2,1807.1,1.3967]
[1743418301671,0.00830242,1807.2,1807.1,1.3967]
[1743418301876,2.52827242,1807.2,1807.1,1.3967]
[1743418302183,1.10689,1807.0,1806.9,0.00830242]
[1743418302371,5.76789,1807.0,1806.9,0.00830242]
[1743418302678,8.26789,1807.0,1806.9,0.00830242]
[1743418302970,10.39609,1807.0,1806.9,0.00830242]
[1743418303772,10.88000795,1807.0,1806.9,0.00830242]
[1743418303976,2.768,1806.5,1805.9,3.2078]
[1743418304178,1.10755,1806.0,1805.8,2.59421]
[1743418304569,10.62696,1806.4,1805.8,1.4866]
[1743418304875,1.10736,1806.3,1805.9,3.2078]
[1743418305074,1.10739,1806.2,1806.0,1.10748]
[1743418305269,1.10739,1806.2,1806.1,1.4281]
[1743418305975,1.1075,1806.0,1805.9,0.00553502]
[1743418306178,8.9693,1806.0,1805.9,0.00553502]
[1743418306378,4.652,1806.0,1805.9,0.00553502]
[1743418306579,5.7595,1806.0,1805.9,0.00553502]
[1743418306880,4.652,1806.0,1805.9,0.00553502]
[1743418307076,5.7595,1806.0,1805.9,1.43363502]
[1743418308078,4.638,1806.1,1805.9,1.43363502]
[1743418308481,2.606,1806.0,1805.9,1.43363502]
[1743418309181,2.606,1806.0,1805.9,0.00553502]
[1743418309882,6.5492,1806.0,1805.9,0.00553502]
[1743418317582,2.76892,1805.9,1805.2,3.2078]
[1743418317791,4.31561,1805.5,1805.4,1.3997]
[1743418317982,5.71381,1805.5,1805.4,1.3997]
[1743418318288,3.2078,1805.7,1805.4,1.3997]
[1743418318486,5.70877,1805.6,1805.5,0.743]
[1743418318681,5.70877,1805.6,1805.5,2.1427]
[1743418318881,1.10777,1805.6,1805.5,1.3997]
[1743418319078,5.70677,1805.6,1805.5,1.3997]
[1743418319589,5.70377,1805.6,1805.5,1.3997]
[1743418319986,7.13907,1805.6,1805.5,1.3997]
[1743418320884,1.10793,1805.3,1805.2,0.743]
[1743418321385,1.10801,1805.2,1805.0,0.7255]
[1743418321586,1.10806,1805.1,1805.0,1.4744]
[1743418322090,1.10816,1805.0,1804.7,3.2078]
[1743418322286,1.10818,1804.9,1804.8,1.4771]
[1743418322786,4.584,1805.0,1804.8,2.58532]
[1743418322981,4.584,1805.0,1804.8,1.4771]
[1743418323188,1.10818,1804.9,1804.7,1.81996]
[1743418323492,1.10818,1804.9,1804.7,0.7117]
[1743418323684,1.10818,1804.9,1804.7,1.81995]
[1743418323885,1.10818,1804.9,1804.7,1.81994]
[1743418324086,1.10818,1804.9,1804.8,1.10824]
[1743418324289,4.584,1805.0,1804.7,3.9195]
[1743418324488,1.10818,1804.9,1804.8,1.10819]
[1743418324694,1.10815,1805.0,1804.7,6.69023]
[1743418324889,1.10813,1805.0,1804.9,1.10815]
[1743418325190,1.10819,1804.9,1804.8,1.10819]
[1743418326286,0.00830242,1805.3,1805.2,1.10799]
[1743418326489,3.2078,1805.9,1805.6,1.10775]
[1743418326490,1.4092,1805.7,1805.6,1.10775]
[1743418326689,1.10787,1805.4,1805.3,5.05199]
[1743418326891,1.10787,1805.4,1805.3,0.7363]
[1743418327091,1.10787,1805.4,1805.3,1.84423]
[1743418327588,3.9033,1806.0,1805.3,6.4441]
[1743418327791,3.2078,1806.0,1805.6,2.76938]
[1743418327981,0.00830242,1805.8,1805.7,3.9486]
[1743418328187,0.00830242,1805.8,1805.7,5.05629]
[1743418328389,0.00830242,1805.8,1805.7,7.55629]
[1743418329086,0.00830242,1805.8,1805.7,1.84849]
[1743418330794,0.00830242,1805.8,1805.7,5.05629]
[1743418331191,7.7798,1806.3,1805.7,6.71782]
[1743418331391,7.7798,1806.3,1806.0,1.10749]
[1743418331392,1.4891,1806.2,1806.0,1.10749]
[1743418331596,2.59652,1806.2,1806.0,1.10749]
[1743418331798,1.10744,1806.1,1806.0,1.10749]
[1743418332296,7.16882242,1806.2,1806.0,1.10749]
[1743418332595,4.56730242,1806.2,1806.1,1.10744]
[1743418334785,0.00830242,1806.2,1806.1,1.10744]
[1743418334986,0.00830242,1806.2,1806.1,4.31524]
[1743418335792,0.00830242,1806.2,1806.1,5.00684]
[1743418336399,2.76755,1806.8,1806.6,1.10714]
[1743418336400,7.7378,1806.8,1806.6,1.10714]
[1743418336598,1.10707,1806.7,1806.6,1.10714]
[1743418337001,1.10717,1806.6,1806.5,1.10715]
[1743418337399,1.1072,1806.5,1806.4,1.46940242]
[1743418338001,1.1072,1806.5,1806.4,2.57666242]
[1743418338200,1.1072,1806.5,1806.4,1.46940242]
[1743418338397,1.1072,1806.5,1806.4,2.57666242]
[1743418338803,1.1072,1806.5,1806.4,1.46940242]
[1743418339308,1.1072,1806.5,1806.4,2.57666242]
[1743418339907,1.1072,1806.5,1806.4,1.46940242]
[1743418340394,1.10717,1806.6,1806.5,1.10715]
[1743418340600,5.80631242,1806.7,1806.6,1.10714]